bitfinex/quotes_ETHUSD_20251028
["timestamp","ask_amount","ask_price","bid_price","bid_amount"]
[1761614836735,4.4259699,4128.7,4128.6,0.002]
[1761614837343,0.00100001,4128.8,4128.7,2.4220699]
[1761614837641,0.00100001,4128.8,4128.7,3.32917935]
[1761614838609,0.00100001,4128.8,4128.7,3.44997935]
[1761614843351,0.00100001,4128.8,4128.7,3.87970404]
[1761614843552,0.00100001,4128.8,4128.7,3.85548335]
[1761614843745,0.00100001,4128.8,4128.7,4.84770404]
[1761614843948,0.00100001,4128.8,4128.7,4.82348335]
[1761614844759,0.00100001,4128.8,4128.7,4.70268335]
[1761614846671,0.00100001,4128.8,4128.7,6.28210404]
[1761614846830,0.00100001,4128.8,4128.7,6.25788335]
[1761614850485,0.00100001,4128.8,4128.7,10.13688334]
[1761614852455,0.00100001,4128.8,4128.7,7.20817934]
[1761614854789,0.00100001,4128.8,4128.7,7.32897934]
[1761614855488,0.43690001,4128.8,4128.7,7.32897934]
[1761614856380,0.43690001,4128.8,4128.7,3.44997935]
[1761614858509,0.43690001,4128.8,4128.7,2.5428699]
[1761614860050,0.00100001,4128.8,4128.7,2.5428699]
[1761614861006,0.00100001,4128.8,4128.7,2.97259459]
[1761614861817,0.00100001,4128.8,4128.7,2.9483739]
[1761614862202,0.00100001,4128.8,4128.7,6.82737389]
[1761614862385,0.00100001,4128.8,4128.7,7.7525296]
[1761614862716,0.43690001,4128.8,4128.7,7.7525296]
[1761614863208,0.00100001,4128.8,4128.7,7.7525296]
[1761614866122,0.00100001,4128.8,4128.7,7.3470256]
[1761614871053,0.00100001,4128.8,4128.7,3.46802561]
[1761614875011,0.44490001,4128.8,4128.7,3.46802561]
[1761614875215,0.44490001,4128.8,4128.7,2.5428699]
[1761614877849,0.00100001,4128.8,4128.7,2.5428699]
[1761614881815,0.66900001,4128.8,4128.7,0.1208]
[1761614882015,0.66900001,4128.8,4128.6,0.002]
[1761614882215,0.4439,4128.7,4128.6,0.002]
[1761614885721,2.8659699,4128.7,4128.6,0.002]
[1761614885959,0.4439,4128.7,4128.6,0.002]
[1761614888037,4.4211699,4128.7,4128.6,0.002]
[1761614888559,1.9991,4128.7,4128.6,0.002]
[1761614889940,4.4211699,4128.7,4128.6,0.002]
[1761614890279,1.9991,4128.7,4128.6,0.002]
[1761614892863,1.9858,4128.7,4128.6,0.002]
[1761614910149,0.00100001,4128.8,4128.6,0.002]
[1761614910423,0.00100001,4128.8,4128.7,2.5428699]
[1761614910628,0.00100001,4128.8,4128.7,3.03957539]
[1761614911217,0.43160001,4128.8,4128.7,0.1208]
[1761614917674,0.00100001,4128.8,4128.7,2.5428699]
[1761614917837,0.00100001,4128.8,4128.7,2.56709059]
[1761614918036,0.00100001,4128.8,4128.7,6.76739443]
[1761614918727,0.00100001,4128.8,4128.7,7.17289843]
[1761614918922,0.00100001,4128.8,4128.7,8.22940527]
[1761614925523,0.00100001,4128.8,4128.7,9.78460527]
[1761614930163,0.00100001,4128.8,4128.7,10.75260527]
[1761614932162,0.00100001,4128.8,4128.7,5.56008074]
[1761614932456,0.00100001,4128.8,4128.7,10.75260527]
[1761614944192,0.00100001,4128.8,4128.7,14.63160526]
[1761614946989,0.00100001,4128.8,4128.7,9.43908073]
[1761614954266,0.00100001,4128.8,4128.7,10.40708073]
[1761614958604,1e-08,4129.7,4129.6,2.82704603]
[1761614958805,1e-08,4129.7,4129.6,9.59898598]
[1761614959101,1e-08,4129.7,4129.6,9.57477056]
[1761614959507,1e-08,4129.7,4129.6,9.67164197]
[1761614963182,0.001,4129.9,4129.6,9.67164197]
[1761614963183,0.001,4129.9,4129.7,4.3821874]
[1761614963388,0.001,4129.9,4129.8,5.29928709]
[1761614963811,0.001,4129.9,4129.8,6.26728709]
[1761614964580,0.2182,4129.9,4129.8,6.26728709]
[1761614964814,0.6742,4129.9,4129.8,2.42142476]
[1761614968383,0.2182,4129.9,4129.8,2.42142476]
[1761614968589,0.2182,4129.9,4129.8,2.54222476]
[1761614968790,0.6742,4129.9,4129.8,2.54222476]
[1761614980906,0.6742,4129.9,4129.8,0.1208]
[1761614981317,0.6742,4129.9,4129.8,2.54222476]
[1761614983729,0.6742,4129.9,4129.8,2.54422476]
[1761614983924,0.2182,4129.9,4129.8,2.54422476]
[1761614984124,0.6686,4129.9,4129.8,2.54422476]
[1761614989438,0.6686,4129.9,4129.8,0.1228]
[1761614989644,0.6686,4129.9,4129.8,2.54422476]
[1761614992431,0.2153,4129.9,4129.8,2.54422476]
[1761614992631,0.6657,4129.9,4129.8,2.54422476]
[1761614995821,0.6657,4129.9,4129.8,0.1228]
[1761614996019,0.6657,4129.9,4129.8,2.54422476]
[1761614996220,0.6657,4129.9,4129.8,0.1228]
[1761614996652,0.6657,4129.9,4129.8,2.54422476]
[1761615001047,0.6657,4129.9,4129.8,0.1228]
[1761615001235,0.6657,4129.9,4129.8,0.002]
[1761615001236,3.08706613,4129.9,4129.8,0.002]
[1761615001436,3.08706613,4129.9,4129.6,0.002]
[1761615001437,2.4214834,4129.7,4129.6,0.002]
[1761615001657,2.42165932,4129.4,4129.3,0.002]
[1761615001820,2.42177661,4129.2,4129.1,0.002]
[1761615002249,0.4504,4129.2,4129.1,0.002]
[1761615003845,2.87217661,4129.2,4129.1,0.002]
[1761615005226,5.39537661,4129.2,4129.1,0.002]
[1761615008757,4.42737661,4129.2,4129.1,0.002]
[1761615011472,4.54817661,4129.2,4129.1,0.002]
[1761615016788,2.42189392,4129.0,4128.7,0.002]
[1761615016962,2.42201123,4128.8,4128.7,0.002]
[1761615017164,4.44271123,4128.8,4128.7,0.002]
[1761615017390,4.96258053,4128.8,4128.7,0.002]
[1761615017766,5.05953201,4128.8,4128.7,0.002]
[1761615018463,4.53966271,4128.8,4128.7,0.002]
[1761615019175,5.41071123,4128.8,4128.7,0.002]
[1761615019374,4.94521123,4128.8,4128.7,0.002]
[1761615019575,2.9887,4128.8,4128.7,0.002]
[1761615019975,5.41071123,4128.8,4128.7,0.002]
[1761615020367,2.9887,4128.8,4128.7,0.002]
[1761615020586,5.41071123,4128.8,4128.7,0.002]
[1761615026876,5.53151123,4128.8,4128.7,0.002]
[1761615027075,10.91299673,4128.8,4128.7,0.002]
[1761615029776,9.75712663,4128.8,4128.7,0.002]
[1761615031857,5.53151123,4128.8,4128.7,0.002]
[1761615032595,9.75712663,4128.8,4128.7,0.002]
[1761615034795,10.27921455,4128.8,4128.7,0.002]
[1761615037294,10.81024234,4128.8,4128.7,0.002]
[1761615037800,10.90720087,4128.8,4128.7,0.002]
[1761615037962,10.25537308,4128.8,4128.7,0.002]
[1761615039278,9.28737308,4128.8,4128.7,0.002]
[1761615039480,10.15841455,4128.8,4128.7,0.002]
[1761615039878,10.25536203,4128.8,4128.7,0.002]
[1761615040079,12.05536203,4128.8,4128.7,0.002]
[1761615041502,12.05536203,4128.8,4128.0,0.02229459]
[1761615041503,2.42249613,4128.0,4127.3,2.42288042]
[1761615041701,2.4225468,4127.9,4127.3,2.42288042]
[1761615041889,2.4225468,4127.9,4127.3,0.24409804]
[1761615042290,1.5552,4128.2,4127.3,0.24409804]
[1761615042491,3.97757676,4128.2,4127.4,2.43088639]
[1761615042799,1.5552,4128.2,4127.1,0.01]
[1761615042967,2.42225545,4128.4,4127.7,2.42261465]
[1761615043373,2.42246221,4128.1,4127.4,2.42283277]
[1761615043872,0.4345,4128.1,4127.1,0.0181]
[1761615044154,4.6601154,4128.0,4127.1,0.01]
[1761615044403,2.42283264,4127.5,4127.1,0.01]
[1761615044783,2.85733264,4127.5,4127.1,0.01]
[1761615045184,1.5552,4127.6,4127.1,0.01]
[1761615045396,4.6601154,4127.4,4127.1,0.01]
[1761615045807,2.42295018,4127.2,4127.1,0.01]
[1761615046174,2.85745018,4127.2,4127.1,0.01]
[1761615047177,2.97825018,4127.2,4127.1,0.01]
[1761615047704,2.96310018,4127.2,4127.1,0.01]
[1761615052751,2.54375018,4127.2,4127.1,0.01]
[1761615053029,2.54375018,4127.2,4127.1,0.012]
[1761615053387,2.97825018,4127.2,4127.1,0.012]
[1761615054321,2.54375018,4127.2,4127.1,0.012]
[1761615054521,0.1208,4127.2,4127.1,0.012]
[1761615054700,2.54375018,4127.2,4127.1,0.012]
[1761615054900,0.1208,4127.2,4127.1,0.012]
[1761615055094,2.97825018,4127.2,4127.1,0.012]
[1761615056027,2.54375018,4127.2,4127.1,0.012]
[1761615057223,2.97825018,4127.2,4127.1,0.012]
[1761615059539,2.54375018,4127.2,4127.1,0.012]
[1761615060038,2.97825018,4127.2,4127.1,0.012]
[1761615063410,4.53345018,4127.2,4127.1,0.012]
[1761615065833,8.75906558,4127.2,4127.1,0.012]
[1761615068443,9.28091927,4127.2,4127.1,0.012]
[1761615070669,9.28191927,4127.2,4127.1,0.012]
[1761615074885,8.84741927,4127.2,4127.1,0.012]
[1761615075085,9.32021927,4127.2,4127.1,0.012]
[1761615075381,6.06360387,4127.2,4127.1,0.012]
[1761615076499,6.06360387,4127.2,4126.6,0.002]
[1761615076500,3.97820889,4127.1,4126.6,0.002]
[1761615076650,2.42347866,4126.3,4126.2,0.002]
[1761615076848,9.17329406,4126.3,4126.2,0.002]
[1761615077082,10.16794775,4126.3,4126.2,0.002]
[1761615077583,4.50053235,4126.3,4126.2,0.002]
[1761615077756,11.49514775,4126.3,4126.2,0.002]
[1761615077963,11.96794775,4126.3,4126.2,0.002]
[1761615085896,16.59906715,4126.3,4126.2,0.002]
[1761615086076,16.59906715,4126.3,4126.1,0.01]
[1761615086077,4.38424139,4126.2,4126.1,0.01]
[1761615086399,5.37889508,4126.2,4126.1,0.01]
[1761615086564,5.49969508,4126.2,4126.1,0.01]
[1761615087199,9.72531048,4126.2,4126.1,0.01]
[1761615087561,5.49969508,4126.2,4126.1,0.01]
[1761615089093,5.49969508,4126.2,4126.1,0.012]
[1761615091598,9.72531048,4126.2,4126.1,0.012]
[1761615091786,10.57954371,4126.2,4126.1,0.012]
[1761615096899,10.10674371,4126.2,4126.1,0.012]
[1761615097100,10.55684371,4126.2,4126.1,0.012]
[1761615097782,9.70123971,4126.2,4126.1,0.012]
[1761615098321,10.35389849,4126.2,4126.1,0.012]
[1761615098515,10.80399849,4126.2,4126.1,0.012]
[1761615099788,2.42377235,4125.8,4125.7,0.002]
[1761615100116,9.17962098,4125.8,4125.7,0.002]
[1761615100308,10.15157467,4125.8,4125.7,0.002]
[1761615104430,10.80333468,4125.8,4125.7,0.002]
[1761615106329,10.15157467,4125.8,4125.7,0.002]
[1761615107532,9.70147467,4125.8,4125.7,0.002]
[1761615108816,11.02191035,4125.8,4125.7,0.002]
[1761615109224,10.57181035,4125.8,4125.7,0.002]
[1761615109409,11.02191035,4125.8,4125.7,0.002]
[1761615110021,10.57181035,4125.8,4125.7,0.002]
[1761615110641,9.70147467,4125.8,4125.7,0.002]
[1761615111143,10.57181035,4125.8,4125.7,0.002]
[1761615114533,10.57317531,4125.8,4125.7,0.002]
[1761615116440,11.02327531,4125.8,4125.7,0.002]
[1761615118045,7.90935999,4125.4,4125.3,0.002]
[1761615118244,11.9505077,4125.4,4125.3,0.002]
[1761615118412,11.52847864,4125.4,4125.3,0.002]
[1761615119145,12.40044542,4125.4,4125.3,0.002]
[1761615119921,11.54484142,4125.4,4125.3,0.002]
[1761615120142,10.57584142,4125.4,4125.3,0.002]
[1761615120345,9.70387464,4125.4,4125.3,0.002]
[1761615120524,11.32679591,4125.4,4125.3,0.0253]
[1761615120725,11.32679591,4125.4,4125.3,0.002]
[1761615121622,11.32679591,4125.4,4125.3,0.0253]
[1761615122030,11.32679591,4125.4,4125.3,0.002]
[1761615127558,11.13667464,4125.4,4125.3,0.002]
[1761615133685,11.13666531,4125.4,4125.3,0.002]
[1761615136892,10.67286531,4125.4,4125.3,0.002]
[1761615139588,11.13666531,4125.4,4125.3,0.002]
[1761615139791,12.93666531,4125.4,4125.3,0.002]
[1761615141883,13.34216931,4125.4,4125.3,0.002]
[1761615143567,13.34216931,4125.4,4125.1,0.01]
[1761615143568,4.84857012,4125.3,4125.1,0.01]
[1761615143774,0.52320932,4125.2,4125.1,0.01]
[1761615143973,4.96633421,4125.2,4125.1,0.01]
[1761615144361,2.54220932,4125.2,4124.8,0.002]
[1761615144564,4.3852403,4124.5,4124.4,0.002]
[1761615144764,11.82955241,4124.5,4124.4,0.002]
[1761615144993,11.42109825,4124.5,4124.4,0.002]
[1761615146991,5.15653881,4124.5,4124.4,0.002]
[1761615147201,5.47194562,4124.5,4124.4,0.002]
[1761615151187,5.93574562,4124.5,4124.4,0.002]
[1761615151387,5.47194562,4124.5,4124.4,0.002]
[1761615152270,5.93574562,4124.5,4124.4,0.002]
[1761615153116,5.47194562,4124.5,4124.4,0.002]
[1761615153785,13.94365232,4124.5,4124.4,0.002]
[1761615154416,14.37935232,4124.5,4124.4,0.002]
[1761615154580,14.50095232,4124.5,4124.4,0.002]
[1761615155184,14.06525232,4124.5,4124.4,0.002]
[1761615156010,14.50095232,4124.5,4124.4,0.002]
[1761615156832,14.06525232,4124.5,4124.4,0.002]
[1761615158982,9.82939897,4124.5,4124.4,0.002]
[1761615159213,14.06525232,4124.5,4124.4,0.002]
[1761615161544,9.82939897,4124.5,4124.4,0.002]
[1761615165614,9.83039897,4124.5,4124.4,0.002]
[1761615167241,9.83039897,4124.5,4124.4,0.0253]
[1761615167542,2.5461363,4124.5,4124.4,0.0253]
[1761615167718,4.1013363,4124.5,4124.4,0.0253]
[1761615167922,5.0713363,4124.5,4124.4,0.0253]
[1761615170818,5.0713363,4124.5,4124.4,0.002]
[1761615172767,9.83003921,4124.5,4124.4,0.002]
[1761615174837,14.06589256,4124.5,4124.4,0.002]
[1761615175040,9.83003921,4124.5,4124.4,0.002]
[1761615178549,14.50159256,4124.5,4124.4,0.002]
[1761615179865,10.26573921,4124.5,4124.4,0.002]
[1761615180887,9.83003921,4124.5,4124.4,0.002]
[1761615181181,9.83014639,4124.5,4124.4,0.002]
[1761615182759,10.26584639,4124.5,4124.4,0.002]
[1761615183939,14.50169974,4124.5,4124.4,0.002]
[1761615184638,15.15539567,4124.5,4124.4,0.002]
[1761615184840,14.50169974,4124.5,4124.4,0.002]
[1761615185459,1.5552,4124.4,4124.1,0.11]
[1761615185660,8.86950097,4124.2,4124.1,0.11]
[1761615185871,9.51405771,4124.2,4124.1,0.11]
[1761615186065,6.69660436,4124.2,4124.1,0.11]
[1761615186369,10.93245771,4124.2,4124.1,0.11]
[1761615186905,10.27872276,4124.2,4124.1,0.11]
[1761615187669,2.42530073,4123.2,4122.1,0.01]
[1761615187869,9.70931082,4123.2,4122.7,0.0233]
[1761615188279,9.70931082,4123.2,4122.9,0.0233]
[1761615189570,9.70931082,4123.2,4122.7,0.0233]
[1761615190185,2.07815674,4123.2,4122.1,0.01]
[1761615190356,3.98050073,4123.2,4123.1,0.0333]
[1761615190756,1.5552,4123.2,4123.1,0.0333]
[1761615191194,3.98050073,4123.2,4123.1,0.0333]
[1761615192863,3.98050073,4123.2,4123.1,0.01]
[1761615193063,1.5552,4123.2,4123.1,0.0333]
[1761615193504,8.21635408,4123.2,4123.1,0.01]
[1761615197669,8.33795408,4123.2,4123.1,0.01]
[1761615198231,13.02220743,4123.2,4123.1,0.01]
[1761615198524,13.5439441,4123.2,4123.1,0.01]
[1761615198704,9.30809075,4123.2,4123.1,0.01]
[1761615199094,8.78635408,4123.2,4123.1,0.01]
[1761615200122,8.33795408,4123.2,4123.1,0.01]
[1761615200422,8.85969262,4123.2,4123.1,0.01]
[1761615200590,9.30809262,4123.2,4123.1,0.01]
[1761615200992,13.54394597,4123.2,4123.1,0.01]
[1761615201314,13.50107972,4123.2,4123.1,0.01]
[1761615201513,13.37947972,4123.2,4123.1,0.01]
[1761615201814,8.73812237,4123.2,4123.1,0.012]
[1761615202428,9.70812237,4123.2,4123.1,0.012]
[1761615202633,9.18635408,4123.2,4123.1,0.012]
[1761615203512,9.18635408,4123.2,4123.1,0.0353]
[1761615203920,9.18635408,4123.2,4123.1,0.012]
[1761615208102,1.5552,4123.2,4123.1,0.012]
[1761615208343,1.5552,4123.2,4123.1,0.0353]
[1761615209308,0.97,4123.4,4123.1,0.0353]
[1761615209510,0.97,4123.4,4123.2,0.0233]
[1761615209843,3.98024911,4123.7,4123.2,0.26937694]
[1761615210022,2.42507951,4123.6,4123.2,0.26937694]
[1761615210221,2.42507951,4123.6,4123.3,0.0233]
[1761615211251,2.5252,4123.7,4123.3,0.0233]
[1761615211457,0.1216,4123.4,4123.3,0.0233]
[1761615212619,0.001,4124.2,4123.3,0.0233]
[1761615212821,0.001,4124.2,4123.7,2.42499367]
[1761615213045,0.001,4124.2,4123.8,0.0233]
[1761615213255,0.001,4124.2,4124.0,2.42477538]
[1761615213458,0.001,4124.2,4123.8,0.0233]
[1761615213670,0.001,4124.2,4124.0,2.42480355]
[1761615213847,0.001,4124.2,4124.1,0.0233]
[1761615214763,0.001,4124.2,4124.0,0.2713848]
[1761615214962,0.001,4124.2,4123.8,2.42490425]
[1761615215166,0.001,4124.2,4123.9,2.42488536]
[1761615216088,0.001,4124.2,4123.8,0.0233]
[1761615216247,0.001,4124.2,4123.7,2.54659933]
[1761615216447,0.001,4124.2,4123.7,2.56989933]
[1761615217177,0.4276,4124.1,4123.7,0.1216]
[1761615217337,0.001,4124.2,4123.7,0.1216]
[1761615217752,0.4286,4124.2,4123.7,0.1216]
[1761615217949,2.85237146,4124.1,4123.7,0.1216]
[1761615218155,0.1216,4123.9,4123.3,0.1216]
[1761615218434,0.1216,4123.9,4123.3,2.80505572]
[1761615219146,0.1216,4123.9,4123.5,2.42511435]
[1761615220255,0.1216,4123.9,4123.6,2.42504044]
[1761615220451,0.1216,4123.9,4123.5,2.42510598]
[1761615221643,0.1216,4123.9,4123.6,2.42706047]
[1761615221848,0.1216,4123.9,4123.6,2.45036047]
[1761615223137,0.001,4124.2,4123.7,0.0233]
[1761615223337,0.1216,4124.1,4123.7,0.0233]
[1761615224488,0.1216,4124.1,4123.7,2.44830019]
[1761615224667,0.1216,4124.1,4123.6,2.42704673]
[1761615224869,0.1216,4124.1,4123.6,2.42706198]
[1761615225058,0.1216,4124.1,4123.6,0.002]
[1761615225059,0.4276,4124.0,4123.6,0.002]
[1761615226368,0.1216,4124.1,4123.6,0.002]
[1761615226569,0.1216,4124.1,4123.7,2.42499349]
[1761615226871,0.1216,4124.1,4123.6,0.002]
[1761615227238,0.5492,4124.1,4123.6,0.002]
[1761615227440,2.42483064,4124.0,4123.6,0.002]
[1761615227677,2.85243064,4124.0,4123.6,0.002]
[1761615228137,0.6642,4123.9,4123.6,0.002]
[1761615228642,0.1216,4123.7,4123.6,0.002]
[1761615231476,2.4247796,4124.1,4123.6,0.002]
[1761615231643,0.1216,4123.9,4123.6,0.002]
[1761615232368,3.21070344,4123.9,4123.6,0.002]
[1761615232978,0.4276,4123.8,4123.6,0.002]
[1761615233149,0.3582,4123.9,4123.6,0.002]
[1761615233967,3.21071247,4123.9,4123.6,0.002]
[1761615234474,0.7858,4123.9,4123.6,0.002]
[1761615234673,0.1216,4123.9,4123.6,0.002]
[1761615237594,0.6642,4123.8,4123.6,0.002]
[1761615237791,2.54648923,4123.9,4123.6,0.002]
[1761615237792,0.1216,4123.9,4123.6,0.002]
[1761615237998,0.1216,4124.1,4123.6,0.002]
[1761615238392,2.42483026,4124.0,4123.6,0.002]
[1761615239097,2.97399472,4124.1,4123.6,0.002]
[1761615240164,2.97499472,4124.1,4123.6,0.002]
[1761615240688,2.42484592,4124.0,4123.6,0.002]
[1761615240860,2.85244592,4124.0,4123.6,0.002]
[1761615242562,2.42492427,4123.9,4123.6,0.002]
[1761615242759,2.85248459,4124.0,4123.6,0.002]
[1761615242959,0.4276,4124.0,4123.6,0.002]
[1761615243369,2.85243334,4124.0,4123.6,0.002]
[1761615245375,2.42483334,4124.0,4123.6,0.002]
[1761615245578,0.4319,4123.9,4123.6,0.002]
[1761615245999,2.42498704,4123.8,4123.6,0.002]
[1761615246198,0.1216,4123.7,4123.6,0.002]
[1761615246508,2.99180666,4123.7,4123.6,0.002]
[1761615247310,5.0704649,4123.7,4123.6,0.002]
[1761615259324,5.84524162,4123.7,4123.6,0.002]
[1761615260304,5.1920649,4123.7,4123.6,0.002]
[1761615261402,4.7468649,4123.7,4123.6,0.002]
[1761615261602,3.0700649,4123.7,4123.6,0.002]
[1761615261902,5.07180666,4123.7,4123.6,0.002]
[1761615263044,1.6768,4123.7,4123.6,0.002]
[1761615263343,1.6768,4123.7,4123.6,0.0253]
[1761615263546,1.6768,4123.7,4123.6,0.002]
[1761615263547,0.1216,4123.7,4123.6,0.002]
[1761615263715,0.1216,4123.7,4123.6,0.0253]
[1761615267748,0.971,4124.1,4123.6,0.0253]
[1761615267909,1.0926,4124.1,4123.7,2.42500666]
[1761615268113,0.1226,4124.1,4123.7,0.25719067]
[1761615268345,0.001,4124.1,4124.0,2.54643026]
[1761615268713,0.001,4124.1,4124.0,2.56973026]
[1761615269250,0.001,4124.1,4124.0,0.1449]
[1761615269435,0.001,4124.1,4123.6,0.002]
[1761615269652,0.001,4124.1,4123.6,2.54865462]
[1761615269856,0.001,4124.1,4123.6,2.57195462]
[1761615270248,0.001,4124.1,4123.7,2.42499978]
[1761615270442,0.001,4124.1,4123.6,0.1469]
[1761615270647,0.001,4124.1,4123.6,2.57193551]
[1761615270853,0.001,4124.1,4123.6,2.54863551]
[1761615271072,0.001,4124.1,4123.7,2.42499553]
[1761615271362,0.001,4124.1,4123.8,2.42494602]
[1761615271744,0.001,4124.1,4123.8,2.44824602]
[1761615272067,0.001,4124.1,4123.8,2.42494602]
[1761615272274,0.001,4124.1,4123.7,2.42498773]
[1761615272449,0.001,4124.1,4123.7,2.97465971]
[1761615272975,0.001,4124.1,4123.7,2.99795971]
[1761615273140,0.001,4124.1,4123.6,0.1236]
[1761615274284,0.001,4124.1,4123.6,2.54865651]
[1761615274640,0.001,4124.1,4123.6,0.1236]
[1761615275273,6.65941048,4124.0,4123.6,0.1236]
[1761615275436,6.65941048,4124.0,4123.6,0.002]
[1761615275437,0.1216,4123.9,4123.6,0.002]
[1761615275973,2.54649372,4123.9,4123.6,0.002]
[1761615276180,2.99439372,4123.9,4123.6,0.002]
[1761615277444,0.5695,4123.9,4123.6,0.002]
[1761615277852,0.1216,4123.9,4123.6,0.002]
[1761615278583,2.54650585,4123.9,4123.6,0.002]
[1761615278940,2.42495374,4123.8,4123.6,0.002]
[1761615279162,4.45978022,4123.7,4123.6,0.002]
[1761615279374,6.88478688,4123.7,4123.6,0.002]
[1761615280476,4.23458022,4123.7,4123.6,0.002]
[1761615280690,2.42496264,4123.8,4123.6,0.002]
[1761615281174,2.99439278,4123.9,4123.6,0.002]
[1761615281749,2.42500666,4123.7,4123.6,0.002]
[1761615283777,7.10748688,4123.7,4123.6,0.002]
[1761615288278,8.66268688,4123.7,4123.6,0.002]
[1761615291365,9.18532354,4123.7,4123.6,0.002]
[1761615292281,2.42484936,4124.0,4123.6,0.002]
[1761615292462,2.42489374,4123.9,4123.6,0.002]
[1761615293392,2.42484356,4124.0,4123.6,0.002]
[1761615294293,2.42578441,4124.1,4123.6,0.002]
[1761615294589,2.42483576,4124.0,4123.6,0.002]
[1761615295387,2.94840305,4124.1,4123.6,0.002]
[1761615295922,0.001,4124.1,4123.6,0.0253]
[1761615296396,0.001,4124.1,4123.7,0.02425006]
[1761615296578,0.001,4124.1,4123.8,0.0233]
[1761615296769,0.001,4124.1,4123.9,2.42488422]
[1761615297804,0.001,4124.1,4123.8,2.42494786]
[1761615298092,0.001,4124.1,4123.8,2.44824786]
[1761615298411,0.001,4124.1,4123.9,0.51227787]
[1761615300289,2.87273026,4124.0,4123.6,0.002]
[1761615300602,4.23558022,4124.1,4123.6,0.002]
[1761615300603,6.66036326,4124.1,4123.6,0.002]
[1761615300806,4.68348022,4124.1,4123.6,0.002]
[1761615301219,4.68348022,4124.1,4123.7,2.42498581]
[1761615301220,4.23558022,4124.1,4123.7,2.42498581]
[1761615301518,0.001,4124.1,4123.7,2.42498581]
[1761615302286,0.001,4124.1,4123.7,0.26599858]
[1761615302287,0.1216,4123.9,4123.7,0.26599858]
[1761615302486,0.001,4124.1,4123.8,0.0233]
[1761615302715,0.001,4124.1,4123.8,2.44824786]
[1761615304713,0.001,4124.1,4123.6,2.54866151]
[1761615305026,0.001,4124.1,4123.8,2.42493898]
[1761615305227,0.001,4124.1,4123.8,2.44823898]
[1761615305425,0.001,4124.1,4124.0,2.42483026]
[1761615305640,0.001,4124.1,4124.0,2.54643026]
[1761615305808,0.001,4124.1,4124.0,0.1449]
[1761615306209,0.001,4124.1,4124.0,2.56973026]
[1761615306510,0.001,4124.1,4124.0,0.1449]
[1761615306693,0.001,4124.1,4124.0,0.69434319]
[1761615306894,0.001,4124.1,4124.0,3.11917345]
[1761615307537,0.001,4124.1,4124.0,0.69434319]
[1761615307825,0.001,4124.1,4124.0,3.11917345]
[1761615308027,0.001,4124.1,4124.0,3.14342175]
[1761615308234,0.001,4124.1,4124.0,3.11917345]
[1761615310111,1.5552,4125.2,4124.7,2.42436694]
[1761615310317,0.001,4125.3,4124.8,0.24243669]
[1761615310513,3.98029402,4125.3,4124.8,0.24243669]
[1761615310721,3.98029402,4125.3,4124.5,2.44783292]
[1761615310722,2.42509402,4125.3,4124.5,2.44783292]
[1761615310923,0.4534,4125.2,4124.1,4.23458022]
[1761615311127,2.87752489,4125.2,4124.2,2.42466309]
[1761615311429,2.87752489,4125.2,4124.0,0.57274319]
[1761615311430,2.42425047,4125.0,4124.3,2.42463927]
[1761615311936,3.11064374,4124.9,4124.1,2.42476722]
[1761615312157,0.6863,4124.9,4124.2,0.63680965]
[1761615312307,0.6863,4124.9,4123.3,1.5552]
[1761615312308,0.4534,4124.8,4123.3,0.0233]
[1761615312508,0.4534,4124.8,4123.7,2.4249825]
[1761615312509,2.42463949,4124.4,4123.7,2.4249825]
[1761615313154,2.42466008,4124.3,4123.3,2.44852148]
[1761615313308,2.87806008,4124.3,4124.0,0.002]
[1761615313508,0.4534,4124.2,4124.0,0.002]
[1761615314438,0.44877,4124.2,4124.0,0.002]
[1761615315561,0.4438,4124.2,4124.0,0.002]
[1761615315767,0.2205,4125.5,4124.1,4.23458022]
[1761615316005,0.001,4125.6,4124.6,4.23458022]
[1761615316136,0.001,4125.6,4124.7,0.02424418]
[1761615316335,0.001,4125.6,4125.1,2.42418365]
[1761615316863,0.001,4125.6,4125.1,2.48132548]
[1761615317069,0.001,4125.6,4125.1,2.44842548]
[1761615317369,0.001,4125.6,4125.1,3.36244205]
[1761615317766,0.001,4125.6,4125.0,2.4242282]
[1761615317971,0.001,4125.6,4124.9,2.42430119]
[1761615318170,0.001,4125.6,4125.1,2.42418365]
[1761615320176,0.001,4125.6,4125.1,2.54578365]
[1761615321736,2.42489856,4125.6,4125.1,0.1216]
[1761615321938,0.4544,4125.2,4124.2,0.42365802]
[1761615322154,4.23458022,4125.0,4124.0,0.002]
[1761615322359,2.42428281,4125.0,4124.5,0.1216]
[1761615322642,0.2329,4124.9,4124.5,0.1216]
[1761615322859,0.6863,4124.9,4124.5,0.1216]
[1761615323061,3.11060866,4124.9,4124.5,0.1216]
[1761615323767,0.4534,4124.8,4124.5,0.1216]
[1761615324063,0.4534,4124.8,4124.5,0.37623043]
[1761615324341,2.87780866,4124.8,4124.5,0.37623043]
[1761615324558,2.87780866,4124.8,4124.5,0.1216]
[1761615324751,0.4534,4124.7,4124.5,0.1216]
[1761615327679,0.2329,4124.9,4124.5,0.1216]
[1761615327875,0.6863,4124.9,4124.5,0.1216]
[1761615328442,0.4534,4124.8,4124.5,0.1216]
[1761615330590,0.1216,4124.6,4124.0,0.1236]
[1761615330882,2.4246675,4124.3,4124.0,0.1236]
[1761615331081,0.4534,4124.8,4124.0,0.1236]
[1761615331082,0.23419066,4125.9,4125.4,0.405504]
[1761615331252,0.001,4126.5,4126.4,4.38412393]
[1761615331253,0.52270044,4126.5,4126.4,4.38412393]
[1761615331455,0.001,4126.5,4126.4,17.03189042]